Cogmind - Beta 13 @@@ ROGUE MODE // 2024.07.08 @ 10:45:04 Player: Dosh Result: Core destroyed Performance ------------- Evolutions (1) 500 Regions Visited (5) 1000 Robots Destroyed (95) 475 Value Destroyed (2045) 2045 Prototype IDs (9) 180 Alien Tech Used (0) 0 Bonus (20) 20 TOTAL SCORE: 4220 Bonus ------- High Alert Combat Kills 20 Cogmind --------- Core Integrity 0/400 Matter 219/300 Energy 100/100 System Corruption 24% Temperature Cool (0) Movement Core (1550) Ox30 Location -9/Exiles Parts ------- > --- POWER (1) -------- Heavy Ion Engine > --- PROPULSION (3) --- Light Treads Light Treads Advanced Treads (fused) > --- UTILITY (3) ------ Huge Storage Unit Light Armor Plating > --- WEAPON (2) ------- (None) > --- INVENTORY (25) --- Advanced Treads Advanced Treads Advanced Treads Improved Heat Sink Cooling System Medium Matter Pod (100) Medium Armor Plating Medium Armor Plating Shield Generator Shield Generator Hacking Suite Hacking Suite Heavy Assault Rifle Heavy Assault Rifle Improved Light Cannon Improved Light Cannon Improved Grenade Launcher Datajack Mining Claw Peak State ------------ > --- POWER ------------ Heavy Ion Engine > --- PROPULSION ------- Light Treads Light Treads Advanced Treads > --- UTILITY ---------- Huge Storage Unit Light Armor Plating Shield Generator > --- WEAPON ----------- Heavy Assault Rifle Improved Grenade Launcher > --- INVENTORY -------- Advanced Treads Advanced Treads Advanced Treads Improved Heat Sink Cooling System Medium Matter Pod Medium Armor Plating Medium Armor Plating Shield Generator Shield Generator Hacking Suite Hacking Suite Heavy Assault Rifle Improved Light Cannon Improved Light Cannon Datajack Mining Claw [Rating: 20] Favorites ----------- Power Heavy Ion Engine Engine Heavy Ion Engine Propulsion Light Treads Treads Light Treads Utility Light Armor Plating Device Shield Generator Storage Large Storage Unit Protection Light Armor Plating Weapon Heavy Assault Rifle Energy Gun EM Pulse Gun Ballistic Gun Heavy Assault Rifle Ballistic Cannon Improved Light Cannon Launcher Improved Grenade Launcher Build | -11 -10 -10 -9 -9 -9 ------- Run | Yrd Mat Min Mat Min Exi Slots Evolved 2 | . . . 2 . . Power . | . . . . . . Propulsion 1 | . . . 1 . . Utility 1 | . . . 1 . . Weapon . | . . . . . . Parts Attached 60 | 6 5 . 40 9 . Power 6 | 1 . . 3 2 . Engine 6 | 1 . . 3 2 . Core . | . . . . . . Reactor . | . . . . . . Propulsion 18 | 2 1 . 15 . . Treads 18 | 2 1 . 15 . . Leg . | . . . . . . Wheel . | . . . . . . Hover . | . . . . . . Flight . | . . . . . . Utility 13 | 1 2 . 10 . . Device 3 | . . . 3 . . Storage 4 | 1 2 . 1 . . Processor . | . . . . . . Hackware . | . . . . . . Protection 6 | . . . 6 . . Artifact . | . . . . . . Weapon 23 | 2 2 . 12 7 . Energy Gun 1 | 1 . . . . . Energy Cannon . | . . . . . . Ballistic Gun 9 | 1 . . 4 4 . Ballistic Cannon 9 | . 2 . 7 . . Launcher 4 | . . . 1 3 . Special Weapon . | . . . . . . Impact Weapon . | . . . . . . Slashing Weapon . | . . . . . . Piercing Weapon . | . . . . . . Special Melee Weapon . | . . . . . . Unidentified Prototypes . | . . . . . . Parts Lost 2 | . . . 1 . 1 Power 1 | . . . 1 . . Propulsion . | . . . . . . Utility 1 | . . . . . 1 Weapon . | . . . . . . Highest Loss Streak 1 | . . . 1 . 1 To Critical Strikes . | . . . . . . Average Slot Usage (%) 92 | . 85 85 97 100 71 Engine 11 | . 14 14 10 11 11 Treads 31 | . 28 28 32 33 33 Device 6 | . . . 10 11 4 Storage 11 | . 14 14 11 11 11 Protection 7 | . . . 10 11 11 Ballistic Gun 11 | . . . 17 21 . Ballistic Cannon 9 | . 27 28 4 . . Naked Turns . | . . . . . . Heaviest Build 102 | 14 38 33 99 102 99 Greatest Support 62 | 40 40 40 62 62 62 Greatest Overweight (x) 1 | 1 . . 1 1 1 Average Overweight (x) . | . . . . 1 1 Largest Inventory Capacity 25 | 8 15 15 25 25 25 Average Capacity 18 | 6 12 15 18 25 25 Most Carried 19 | 2 12 13 17 18 19 Average Carried 14 | 1 8 12 15 17 18 Final Capacity 25 | 8 15 15 25 25 25 Final Carried 19 | 2 12 13 17 17 19 Class Distribution -------------------- 93% | Mutant 6% | Scavenger-Mutant Dominant Class ---------------- Mutant | -10/Materials Mutant | -10/Mines Mutant | -9/Materials Mutant | -9/Mines Mutant | -9/Exiles Resources | -11 -10 -10 -9 -9 -9 ----------- Run | Yrd Mat Min Mat Min Exi Matter Collected 2419 | 223 525 46 1247 378 . Remotely . | . . . . . . Salvage Created 2413 | . 440 55 1484 434 . Parts 189 | . 34 6 110 39 . Haulers Intercepted 7 | . 2 . 5 . . Recyclers Shooed 6 | . 1 . 4 1 . Parts Field Recycled . | . . . . . . Retrieved Matter . | . . . . . . Parts Self-Destructed . | . . . . . . Prevented . | . . . . . . Kills | -11 -10 -10 -9 -9 -9 ------- Run | Yrd Mat Min Mat Min Exi Combat Hostiles Destroyed 56 | . 9 2 32 13 . Guns 18 | . . . 13 5 . Cannons 23 | . 9 2 12 . . AOE 15 | . . . 7 8 . Classes Destroyed 10 | . 6 . 3 1 . Worker 6 | . . . 3 3 . Builder 2 | . . . . 2 . Tunneler 6 | . 2 1 2 1 . Hauler 7 | . 2 . 5 . . Recycler 7 | . 1 . 3 3 . Operator 3 | . 2 . 1 . . Watcher 8 | . 3 . 5 . . Swarmer 18 | . . . 11 7 . Grunt 29 | . 9 2 12 6 . Sentry 9 | . . . 9 . . Best Kill Streak 8 | . 5 2 8 5 . Combat Bots Only 7 | . 4 2 7 4 . Max Kills in Single Turn 4 | . 2 1 4 3 . Gunslinging . | . . . . . . Exploded 4 | . . . 4 3 . Melee . | . . . . . . Uniques/NPCs Destroyed . | . . . . . . Combat | -11 -10 -10 -9 -9 -9 -------- Run | Yrd Mat Min Mat Min Exi Hostile Shots Fired 211 | . 31 5 143 32 . Missed 60 | . 12 2 38 8 . Damage Taken 2134 | . 255 45 1245 249 340 Core 435 | . 15 15 120 14 271 Absorbed by Shields 141 | . . . 36 98 7 Regen/Repaired (Parts) 183 | . . . 183 . . Core Remaining (%) 94 | 100 . 88 . . . Volleys Fired 196 | . 40 4 128 24 . Largest 2 | . 2 2 2 2 . Hottest 78 | . 78 78 78 59 . Shots Fired 377 | . 80 8 243 46 . Gun 207 | . . . 169 38 . Cannon 160 | . 80 8 72 . . Launcher 10 | . . . 2 8 . Special . | . . . . . . Kinetic 367 | . 80 8 241 38 . Thermal . | . . . . . . Explosive 10 | . . . 2 8 . Electromagnetic . | . . . . . . Robot Hit Streak 17 | . 8 3 17 9 . Robot Miss Streak 4 | . 2 2 4 3 . Penetration Max . | . . . . . . Secondary Targets 4 | . . . 4 . . Max Gunslinging Chain 1 | . . . 1 . . Shots Hit Robots 231 | . 40 4 159 28 . Core Hits 124 | . 23 4 71 26 . Critical Kills 1 | . . . . 1 . Critical Parts Destroyed . | . . . . . . Critical Strikes 5 | . 3 . 1 1 . Destroy 1 | . . . . 1 . Blast 4 | . 3 . 1 . . Melee Attacks . | . . . . . . Impact . | . . . . . . Slashing . | . . . . . . Piercing . | . . . . . . Sneak Attacks . | . . . . . . Combat Hostiles . | . . . . . . Follow-up Attacks . | . . . . . . Damage Inflicted 5686 | . 992 109 3193 1313 79 Guns 1937 | . . . 1559 378 . Cannons 2182 | . 958 106 1118 . . Explosions 1321 | . . . 454 867 . Melee . | . . . . . . Ramming 246 | . 34 3 62 68 79 Kinetic 4119 | . 958 106 2677 378 . Thermal . | . . . . . . Explosive 1321 | . . . 454 867 . Electromagnetic . | . . . . . . Impact . | . . . . . . Slashing . | . . . . . . Piercing . | . . . . . . Highest Corruption 23 | . 1 1 3 3 23 Average Corruption 3 | . 1 1 2 3 10 Corruption Purged . | . . . . . . Corruption Blocked . | . . . . . . Effects 98 | . 12 4 31 33 18 Message Errors 19 | . 3 . 6 6 4 Matter Fused 37 | . 6 1 10 14 6 Heat Flow Errors 9 | . 1 1 4 . 3 Energy Discharges 12 | . 2 . 3 6 1 Parts Fused 1 | . . . . . 1 Data Loss (minor) 11 | . . 2 4 2 3 Data Loss (major) 4 | . . . 1 3 . Alerts 4 | . . . 2 2 . Weapon Failures 1 | . . . 1 . . Overload Shots . | . . . . . . Overflow Damage 83 | . . . 60 23 . Projectiles 19 | . . . 19 . . Explosions 64 | . . . 41 23 . Melee . | . . . . . . Knockbacks 11 | . 7 . 4 . . Impact . | . . . . . . Kinetic 11 | . 7 . 4 . . Secondary . | . . . . . . Self-Inflicted Damage 147 | . . . . 68 79 Shots 3 | . . . . 3 . Rammed 22 | . 5 2 9 6 . Targets Rammed 25 | . 5 3 10 7 . Kicked . | . . . . . . Crushed 3 | . . 1 1 1 . Highest Temperature 210 | . 156 153 158 12 210 Average Temperature 49 | . 49 59 38 6 91 Received Heat Transfer 780 | . 156 27 513 84 . Siege Activations . | . . . . . . Robots Corrupted . | . . . . . . Combat Hostiles . | . . . . . . Parts Fried . | . . . . . . Impact Corruptions . | . . . . . . Robots Melted . | . . . . . . Combat Hostiles . | . . . . . . Parts Melted . | . . . . . . Heat Transferred . | . . . . . . Parts Sabotaged . | . . . . . . Parts Stolen . | . . . . . . Parts Stripped . | . . . . . . Power Chain Reactions . | . . . . . . Alert | -11 -10 -10 -9 -9 -9 ------- Run | Yrd Mat Min Mat Min Exi Peak Influence 500 | . 169 116 500 259 . Initial 115 | . . 61 . 115 . Average 173 | . 58 43 252 176 . Maximum Alert Level 2 | . . . 2 1 . Low Security (%) 55 | 100 100 100 22 64 . Level 1 40 | . . . 70 35 . Level 2 3 | . . . 6 . . Level 3 . | . . . . . . Level 4 . | . . . . . . Level 5 . | . . . . . . High Security . | . . . . . . Max Security . | . . . . . . Squads Dispatched 7 | . 3 . 4 . . Investigation 6 | . 3 . 3 . . Extermination . | . . . . . . Reinforcement 1 | . . . 1 . . Assault . | . . . . . . Garrison . | . . . . . . Intercept . | . . . . . . Searches Triggered . | . . . . . . Construction Impeded . | . . . . . . Haulers Reinforced . | . . . . . . Active Scanning Responses . | . . . . . . Cargo Convoy Interrupts . | . . . . . . Stealth | -11 -10 -10 -9 -9 -9 --------- Run | Yrd Mat Min Mat Min Exi Distress Signals 4 | . . . 4 . . Communications Jammed . | . . . . . . Distress Signals . | . . . . . . Times Spotted 78 | . 15 2 48 13 . Peak Tracking Total 8 | . 4 2 8 3 . Tactical Retreats 4 | . . . 3 1 . Traps | -11 -10 -10 -9 -9 -9 ------- Run | Yrd Mat Min Mat Min Exi Traps Triggered 6 | . 1 . 5 . . Indirectly . | . . . . . . Trap Hack Attempts . | . . . . . . Triggered . | . . . . . . Disarmed . | . . . . . . Reprogrammed . | . . . . . . Reused . | . . . . . . Traps Extracted . | . . . . . . Installed . | . . . . . . Triggered . | . . . . . . Machines | -11 -10 -10 -9 -9 -9 ---------- Run | Yrd Mat Min Mat Min Exi Machines Disabled 9 | . 3 . 4 1 1 Max in Single Turn 2 | . 1 . 2 1 1 Machines Repaired . | . . . . . . Machines Dismantled . | . . . . . . Machines Sabotaged . | . . . . . . Overloaded Fab Kills . | . . . . . . Hacking | -11 -10 -10 -9 -9 -9 --------- Run | Yrd Mat Min Mat Min Exi Machines Accessed 21 | . 8 . 13 . . Terminals 15 | . 6 . 9 . . Fabricators . | . . . . . . Repair Stations 2 | . . . 2 . . Recycling Units 3 | . 2 . 1 . . Scanalyzers 1 | . . . 1 . . Garrison Access . | . . . . . . Total Hacks 80 | . 30 . 50 . . Successful 35 | . 14 . 21 . . Failed 44 | . 15 . 29 . . Catastrophic 4 | . . . 4 . . Database Lockouts 1 | . 1 . . . . Manual 53 | . 22 . 31 . . Terminals 68 | . 28 . 40 . . Fabricators . | . . . . . . Repair Stations 6 | . . . 6 . . Recycling Units 3 | . 2 . 1 . . Scanalyzers 3 | . . . 3 . . Garrison Access . | . . . . . . Terminal Hacks 20 | . 10 . 10 . . Robot Schematic 1 | . . . 1 . . Robot Analysis 3 | . 2 . 1 . . Prototype ID Bank 8 | . 5 . 3 . . Terminal Index 1 | . 1 . . . . Alert Level 2 | . 1 . 1 . . Unreport Threat 2 | . . . 2 . . Locate Traps 2 | . 1 . 1 . . Hauler Manifests 1 | . . . 1 . . Fabricator Hacks . | . . . . . . Repair Station Hacks 6 | . . . 6 . . Scan Component 3 | . . . 3 . . Repair 3 | . . . 3 . . Recycling Unit Hacks . | . . . . . . Scanalyzer 3 | . . . 3 . . Insert Component 1 | . . . 1 . . Analyze 2 | . . . 2 . . Garrison Access Hacks . | . . . . . . Unauthorized Hacks 6 | . 4 . 2 . . Terminals 3 | . 2 . 1 . . Botnet 3 | . 2 . 1 . . Fabricators . | . . . . . . Repair Stations . | . . . . . . Recycling Units 3 | . 2 . 1 . . Tunnel 3 | . 2 . 1 . . Scanalyzers . | . . . . . . Garrison Access . | . . . . . . Data Cores Recovered 2 | . 2 . . . . Used 1 | . 1 . . . . Hacking Detections 16 | . 6 . 10 . . Full Trace Events 3 | . 1 . 2 . . Feedback Events 1 | . 1 . . . . Corruption 1 | . 1 . . . . Feedback Blocked . | . . . . . . Robot Schematics Acquired 1 | . . . 1 . . Robots Built . | . . . . . . Authchips . | . . . . . . Time . | . . . . . . Total Robot Build Rating . | . . . . . . Part Schematics Acquired 1 | . . . 1 . . Parts Built . | . . . . . . Authchips . | . . . . . . Time . | . . . . . . Total Part Build Rating . | . . . . . . Parts Repaired 3 | . . . 3 . . Time 115 | . . . 115 . . Parts Recycled . | . . . . . . Recycled Matter . | . . . . . . Retrieved Matter . | . . . . . . Retrieved Components . | . . . . . . Parts Scanalyzed 1 | . . . 1 . . Part Schematics Acquired 1 | . . . 1 . . Parts Damaged . | . . . . . . Bothacking | -11 -10 -10 -9 -9 -9 ------------ Run | Yrd Mat Min Mat Min Exi Used RIF Installer . | . . . . . . Robots Hacked . | . . . . . . Non-combat . | . . . . . . Combat . | . . . . . . Robot Hacks Applied . | . . . . . . Relay Couplers Released . | . . . . . . Fabnet Peak Effective % . | . . . . . . Robots Rewired . | . . . . . . Allies Hacked . | . . . . . . Hacks Repelled . | . . . . . . Allies | -11 -10 -10 -9 -9 -9 -------- Run | Yrd Mat Min Mat Min Exi Total Allies 1 | . . . . 1 . Largest Group 1 | . . . . 1 . Highest-Rated Group 31 | . . . . 31 . Highest-Rated Ally 31 | . . . . 31 . Total Orders . | . . . . . . Ally Attacks . | . . . . . . Total Damage . | . . . . . . Kills . | . . . . . . Allies Corrupted . | . . . . . . Allies Melted . | . . . . . . Intel | -11 -10 -10 -9 -9 -9 ------- Run | Yrd Mat Min Mat Min Exi Robot Analysis Total 3 | . 2 . 1 . . Derelict Logs Recovered 5 | . . 3 . 2 . Drone Launches . | . . . . . . Drone Recoveries . | . . . . . . Exploration | -11 -10 -10 -9 -9 -9 ------------- Run | Yrd Mat Min Mat Min Exi Turns Passed 7665 | 85 1553 614 3381 1421 611 Spaces Moved 3456 | 51 864 373 1495 562 111 Core 7 | 7 . . . . . Treads 3449 | 44 864 373 1495 562 111 Legs . | . . . . . . Wheels . | . . . . . . Hover . | . . . . . . Flight . | . . . . . . Fastest Speed 50 | 50 160 160 155 235 235 Average Speed 184 | 147 160 160 183 235 235 Slowest Speed 235 | 160 160 160 235 235 235 Overloaded Moves . | . . . . . . Propulsion Burnouts . | . . . . . . Robots Hopped . | . . . . . . Cave-ins Triggered . | . . . . . . Exploration Rate (%) 70 | 4 98 96 93 94 40 Regions Visited 5 Branch Regions 3 Pre-discovered Areas 4 | . 2 1 1 . . Known Exits Taken 1 | . . 1 . . . Unknown Exits Taken 4 | 1 1 . 1 1 . Scrap Searched 4 | . . 3 . 1 . Spaces Dug 1 | . 1 . . . . Terrain Destroyed 109 | . 2 . 17 90 . Melee . | . . . . . . Projectile 4 | . 2 . 2 . . AOE 105 | . . . 15 90 . Terrain Rammed 28 | . . . . . 28 Walls Destroyed . | . . . . . . Machines Disabled 1 | . . . . . 1 Actions | -11 -10 -10 -9 -9 -9 --------- Run | Yrd Mat Min Mat Min Exi Total 4022 | 58 953 381 1884 605 141 Wait 204 | . 25 1 176 1 1 Move 3451 | 50 863 372 1494 561 111 Hop . | . . . . . . Pick Up 22 | 2 8 1 11 . . Fast Attach 22 | 6 4 . 11 1 . Attach 4 | . . . 3 1 . Detach 8 | . 4 . . 2 2 Swap 34 | . 1 . 26 7 . Drop 29 | . 3 . 25 1 . Fire 196 | . 40 4 128 24 . Melee . | . . . . . . Ram 27 | . . . . . 27 Kick . | . . . . . . Crush 25 | . 5 3 10 7 . Escape Stasis . | . . . . . . Rewire . | . . . . . . Trap . | . . . . . . Miscellaneous . | . . . . . . Route ------- -11/Scrapyard -10/Materials (discovered 5 exits: *Mat x3 / [*Min] / [*Sub]) -10/Mines (discovered 2 exits: *Mat x2) -9/Materials (discovered 3 exits: [*Mat x2] / [*Min]) -9/Mines (discovered 3 exits: [*Mat x2] / [*Exi]) -9/Exiles History --------- Turn | Location | Event 16 | -11/Scrapyard | Discovered new exit (range 15) 86 | -11/Scrapyard | Entered Materials 311 | -10/Materials | Build established: Mutant 461 | -10/Materials | Discovered new exit (range 3) 947 | -10/Materials | Discovered new exit (range 13) 992 | -10/Materials | Discovered new exit (range 16) 1013 | -10/Materials | Discovered new exit (range 6) 1094 | -10/Materials | Central database locked down 1615 | -10/Materials | Discovered new exit (range 10) 1639 | -10/Materials | Entered Mines 1683 | -10/Mines | Identified exit to Materials 1704 | -10/Mines | Received a Rocket Launcher from a helpful Derelict 1823 | -10/Mines | Learned location of Zion (-7) 1866 | -10/Mines | Discovered exit to Materials (range 6) 2253 | -10/Mines | Entered Materials 2253 | -9/Materials | Evolved 2 slots: Propulsion x1, Utility x1 2334 | -9/Materials | Repaired Imp. Light Cannon 2388 | -9/Materials | Discovered new exit (range 7) 2746 | -9/Materials | Destroyed 7 combat bots 3281 | -9/Materials | Discovered new exit (range 10) 3982 | -9/Materials | Build established: Scavenger-Mutant 4258 | -9/Materials | Discovered new exit (range 3) 4446 | -9/Materials | Build established: Mutant 5479 | -9/Materials | Repaired Shield Generator 5532 | -9/Materials | Repaired Hvy. Ion Engine 5634 | -9/Materials | Entered Mines 6321 | -9/Mines | Learned 2 Materials zone layouts 6403 | -9/Mines | Discovered new exit (range 6) 6451 | -9/Mines | Received a Mining Laser from a helpful Derelict 6655 | -9/Mines | Deemed a non-threat by the Exiles lab entrance 6655 | -9/Mines | Discovered new exit (range 5) 6787 | -9/Mines | Learned Materials terminal intel 6801 | -9/Mines | Discovered new exit (range 4) 7055 | -9/Mines | Entered Exiles 7055 | -9/Exiles | Found Exiles lab abandoned 7357 | -9/Exiles | System corruption reached 10% 7388 | -9/Exiles | Core integrity fell below 50% 7590 | -9/Exiles | Core integrity fell below 20% 7666 | -9/Exiles | Core destroyed Last Messages --------------- 07573_ Destabilizing: Core damaged (-12). 07573_ Destabilizing: System corrupted (+2). 07589_ Slammed into HEX's Workstation. 07589_ Destabilizing: Core damaged (-8). 07589_ Destabilizing: Core damaged (-20). 07604_ Slammed into HEX's Workstation. 07604_ Destabilizing: Core damaged (-16). 07605_ System corrupted: Matter fused (-5). 07620_ Slammed into HEX's Workstation. 07620_ Destabilizing: Core damaged (-8). 07620_ Destabilizing: Core damaged (-12). 07630_ System corrupted: Matter fused (-10). 07635_ Slammed into HEX's Workstation. 07635_ Destabilizing: Core damaged (-8). 07650_ System corrupted: Component data lost. 07651_ Slammed into HEX's Workstation. 07665_ W7TDLAQ|KC%EPJRSNL4RRHIBRTDG>B42 07666_ Slammed into HEX's Workstation. 07666_ Destabilizing: System corrupted (+1). 07666_ Destabilizing: Core damaged (-16). Map ----- +----------------------------------------------------+ | | | | | | | | | | | | | | | | | | | | | | | | | | | ?????????????########????????????????????????????? | | ?????????????# #???????????????????????????? | | ?????????????# #???????????????????????????? | | ?????????????# ????????????????????????????? | | ?????????????# X????????????????????????????? | | ?????????????## #????????????????????????????? | | ?????????????#X #????????????????????????????? | | ??????????????# #????????????????????????????? | | ??????????????# #????????????????????????????? | | ??????????????# #########????????????????????? | | ??????????????# ##""""""#????????????????????? | | ??????????????# ## """#????????????????????? | | ??????????????# @""#????????????????????? | | ??????????????# ## """#????????????????????? | | ????????####??# ##""""""#????????????????????? | | ????????"""""?# #########????????????????????? | | ????????""" ## #????????????????????????????? | | ??????#""X" #????????????????????????????? | | ??????#" #????????????????????????????? | | ??????#" ## #????????????????????????????? | | ??????#""""""?# #????????????????????????????? | | ????????"###??# #??????"?????????????????????? | | ??????????????# #??""""""????????????????????? | | ??????????????# #??"""""""???????????????????? | | ?????????????## ###"" """"???????????????????? | | ?????????????#" """"???????????????????? | | ?????????????#" """???????????????????? | | ?????????????#" """???????????????????? | | ?????????????#" """???????????????????? | | ?????????????#" """#??????????????????? | | ?????????????#" """#??????????????????? | | ?????????????## """"??????????????????? | | ??????????????# """#??????????????????? | | ??????????????#" "X" """"??????????????????? | | ??????????????#" """ #??????????????????? | | ??????????????#" """""""""#??????????????????? | | ?????????????##" ########?#???????????????????? | +----------------------------------------------------+ Best States ------------- Heat Dissipation 50 Energy Generation 14 Energy Capacity 280 Matter Stores 300 Matter Capacity 300 Sight Range 16 Terrain Scan Density 10 Armor Coverage 225 Evasion (%) 40 Recoil Reduction 3 Item Schematics ----------------- Hacking Suite | -9/Materials | Scanalyzed Robot Schematics ------------------ M-13 Machinist | -9/Materials | Hacked Fabricated ------------ Nothing Alien Tech Used ----------------- None Achievements -------------- None Challenges ------------ None Game ------ Seed FusionSwarmProcessor Manual? 0 Play Time 00:20:21 Cumulative 428.5 hours Start 2024.07.08 @ 08:53:14 End 2024.07.08 @ 10:45:04 Sessions 3 Manual Loads 0 Difficulty Rogue Special Mode None Game No. 260 Rogue 260 Adventurer 0 Explorer 0 Win Type - Total 27 Types 19/2/3/1/1/0/0/1/0 Lore% 87 Gallery% 88 Achievement% 84 Wizard Run 0 Options --------- Layout 0 ASCII 0 Keyboard 1 Movement Numpad Keybinds 0 Fullscreen 2 Font 18/SmallcapsGlow Map View 76x50 Zoom Use 0% Tactical HUD 1 Map Filters NONE Filters NONE Steam 1 RUN: 054f8586-53c0-464d-8b3f-175baca4256e